Cogmind - Beta 10.2 @@@ ROGUE MODE // 2021.01.26 @ 19:53:51 Player: CrossedViper Result: Smashed by cave-in Performance ------------- Evolutions (0) 0 Regions Visited (2) 400 Robots Destroyed (23) 115 Value Destroyed (621) 621 Prototype IDs (1) 20 Alien Tech Used (0) 0 Bonus (-1281) -1281 TOTAL SCORE: -125 Bonus ------- Friendly Fire -1281 Cogmind --------- Core Integrity 0/250 Matter 268/300 Energy 96/100 System Corruption 12% Temperature Cool (2) Movement Treading (190) Ox1 Location -10/Mines Parts ------- > --- POWER (1) -------- (None) > --- PROPULSION (2) --- Armored Treads > --- UTILITY (2) ------ High-capacity Storage Unit Salvage Targeting Computer > --- WEAPON (2) ------- Mini Grenade Launcher > --- INVENTORY (12) --- Light Angular Momentum Engine Light Treads Light Treads Light Treads Advanced Heat Sink Light Armor Plating Assault Rifle Light Assault Rifle Light Assault Rifle Heavy Assault Rifle Heavy Battle Rifle YI-UF0's Doublenader Peak State ------------ > --- POWER ------------ Ion Engine > --- PROPULSION ------- Light Treads Armored Treads > --- UTILITY ---------- High-capacity Storage Unit Salvage Targeting Computer > --- WEAPON ----------- Light Assault Rifle YI-UF0's Doublenader > --- INVENTORY -------- Light Angular Momentum Engine Light Treads Light Treads Light Treads Advanced Heat Sink Light Armor Plating Assault Rifle Light Assault Rifle Light Assault Rifle Heavy Assault Rifle Heavy Battle Rifle Mini Grenade Launcher [Rating: 15] Favorites ----------- Power Ion Engine Engine Ion Engine Propulsion Light Treads Treads Light Treads Leg Aluminum Leg Utility High-capacity Storage Unit Device Heat Sink Storage High-capacity Storage Unit Processor Salvage Targeting Computer Weapon Light Assault Rifle Energy Gun Small Laser Ballistic Gun Light Assault Rifle Launcher Mini Grenade Launcher Build | -11 -10 -10 ------- Run | Scr Mat Min Slots Evolved . | . . . Power . | . . . Propulsion . | . . . Utility . | . . . Weapon . | . . . Parts Attached 23 | . 14 9 Power 3 | . 3 . Engine 3 | . 3 . Core . | . . . Reactor . | . . . Propulsion 6 | . 4 2 Treads 5 | . 4 1 Leg 1 | . . 1 Wheel . | . . . Hover . | . . . Flight . | . . . Utility 3 | . 2 1 Device 1 | . 1 . Storage 1 | . 1 . Processor 1 | . . 1 Hackware . | . . . Protection . | . . . Artifact . | . . . Weapon 11 | . 5 6 Energy Gun 3 | . 2 1 Energy Cannon . | . . . Ballistic Gun 4 | . 1 3 Ballistic Cannon . | . . . Launcher 4 | . 2 2 Special Weapon . | . . . Impact Weapon . | . . . Slashing Weapon . | . . . Piercing Weapon . | . . . Special Melee Weapon . | . . . Unidentified Prototypes 1 | . . 1 Parts Lost 8 | . 5 3 Power 2 | . 1 1 Propulsion 3 | . 2 1 Utility . | . . . Weapon 3 | . 2 1 Highest Loss Streak 3 | . 2 3 Average Slot Usage (%) 92 | . 81 99 Engine 12 | . 11 13 Treads 25 | . 24 25 Leg 1 | . . 2 Device 2 | . 3 1 Storage 14 | . 14 14 Processor 7 | . . 12 Energy Gun 7 | . 17 . Ballistic Gun 18 | . 9 24 Launcher 1 | . . 2 Naked Turns . | . . . Heaviest Build 43 | 11 43 41 Greatest Support 40 | 20 40 40 Greatest Overweight (x) 2 | . 2 2 Average Overweight (x) . | . . . Largest Inventory Capacity 14 | . 14 12 Average Capacity 11 | . 11 12 Most Carried 12 | . 12 12 Average Carried 11 | . 9 11 Final Capacity 12 | 6 12 12 Final Carried 12 | 6 12 12 Class Distribution -------------------- 98% | Mutant Dominant Class ---------------- Mutant | -10/Materials Mutant | -10/Mines Resources | -11 -10 -10 ----------- Run | Scr Mat Min Matter Collected 698 | 200 243 255 Remotely . | . . . Salvage Created 951 | . 560 391 Parts 56 | . 34 22 Haulers Intercepted 1 | . 1 . Recyclers Shooed 2 | . 1 1 Parts Field Recycled . | . . . Retrieved Matter . | . . . Parts Self-Destructed . | . . . Prevented . | . . . Kills | -11 -10 -10 ------- Run | Scr Mat Min Combat Hostiles Destroyed 14 | . 10 4 Guns 10 | . 6 4 AOE 4 | . 4 . Classes Destroyed 8 | . 7 1 Worker 1 | . 1 . Tunneler 1 | . 1 . Hauler 1 | . 1 . Mechanic 1 | . 1 . Operator 1 | . 1 . Watcher 2 | . 2 . Grunt 12 | . 10 2 Sentry 2 | . . 2 Thug 1 | . . 1 Best Kill Streak 3 | . 3 2 Combat Bots Only 3 | . 3 2 Max Kills in Single Turn 2 | . 2 1 Gunslinging . | . . . Exploded 2 | . 2 . Melee . | . . . Uniques/NPCs Destroyed 1 | . . 1 YI-UF0 (-10/Mines) Combat | -11 -10 -10 -------- Run | Scr Mat Min Damage Taken 1512 | . 554 958 Core 292 | . 69 223 Absorbed by Shields . | . . . Core Remaining (%) 100 | 100 . . Volleys Fired 101 | . 59 42 Largest 2 | . 2 2 Hottest 80 | . 80 60 Shots Fired 171 | . 96 75 Gun 156 | . 90 66 Cannon . | . . . Launcher 15 | . 6 9 Special . | . . . Kinetic 86 | . 26 60 Thermal 70 | . 64 6 Explosive 15 | . 6 9 Electromagnetic . | . . . Robot Hit Streak 12 | . 10 12 Robot Miss Streak 3 | . 3 3 Penetration Max . | . . . Secondary Targets 1 | . . 1 Max Gunslinging Chain 1 | . . 1 Shots Hit Robots 118 | . 70 48 Core Hits 55 | . 35 20 Critical Hits . | . . . Critical Kills . | . . . Critical Parts Destroyed . | . . . Melee Attacks . | . . . Impact . | . . . Slashing . | . . . Piercing . | . . . Sneak Attacks . | . . . Combat Hostiles . | . . . Follow-up Attacks . | . . . Damage Inflicted 1513 | . 964 549 Guns 1262 | . 746 516 Cannons . | . . . Explosions 218 | . 218 . Melee . | . . . Ramming 33 | . . 33 Kinetic 670 | . 219 451 Thermal 592 | . 527 65 Explosive 218 | . 218 . Electromagnetic . | . . . Impact . | . . . Slashing . | . . . Piercing . | . . . Highest Corruption 10 | . . 10 Average Corruption 10 | . . 10 Corruption Purged . | . . . Effects 1 | . . 1 Matter Fused 1 | . . 1 Overload Shots . | . . . Overflow Damage . | . . . Projectiles . | . . . Explosions . | . . . Melee . | . . . Knockbacks . | . . . Impact . | . . . Kinetic . | . . . Secondary . | . . . Self-Inflicted Damage 58 | . 10 48 Shots 4 | . 1 3 Rammed 5 | . . 5 Targets Rammed 5 | . . 5 Kicked . | . . . Crushed . | . . . Highest Temperature 255 | . 255 18 Average Temperature 80 | . 85 10 Received Heat Transfer 411 | . 303 108 Effects 1 | . 1 . Energy Bleed 1 | . 1 . Siege Activations . | . . . Robots Corrupted . | . . . Combat Hostiles . | . . . Parts Fried . | . . . Impact Corruptions . | . . . Robots Melted . | . . . Combat Hostiles . | . . . Parts Melted 2 | . 2 . Heat Transferred 1325 | . 1175 150 Parts Sabotaged . | . . . Parts Stolen . | . . . Parts Stripped . | . . . Power Chain Reactions . | . . . Missiles Intercepted . | . . . Alert | -11 -10 -10 ------- Run | Scr Mat Min Peak Influence 144 | . 144 55 Initial . | . . . Average 37 | . 65 17 Maximum Alert Level . | . . . Low Security (%) 100 | . 100 100 Level 1 . | . . . Level 2 . | . . . Level 3 . | . . . Level 4 . | . . . Level 5 . | . . . High Security . | . . . Max Security . | . . . Squads Dispatched 2 | . 2 . Investigation 1 | . 1 . Extermination . | . . . Reinforcement 1 | . 1 . Assault . | . . . Garrison . | . . . Intercept . | . . . Construction Impeded . | . . . Haulers Reinforced . | . . . Stealth | -11 -10 -10 --------- Run | Scr Mat Min Distress Signals 1 | . 1 . Communications Jammed . | . . . Distress Signals . | . . . Times Spotted 24 | . 21 3 Peak Tracking Total 3 | . 3 1 Tactical Retreats . | . . . Traps | -11 -10 -10 ------- Run | Scr Mat Min Traps Triggered 3 | . 1 2 Indirectly . | . . . Trap Hack Attempts . | . . . Triggered . | . . . Disarmed . | . . . Reprogrammed . | . . . Reused . | . . . Traps Extracted . | . . . Installed . | . . . Triggered . | . . . Machines | -11 -10 -10 ---------- Run | Scr Mat Min Machines Disabled . | . . . Max in Single Turn . | . . . Machines Sabotaged . | . . . Garrisons Compromised . | . . . Overloaded Fab Kills . | . . . Fab Network Shutdowns . | . . . Hacking | -11 -10 -10 --------- Run | Scr Mat Min Machines Accessed 5 | . 3 2 Terminals 3 | . 2 1 Fabricators . | . . . Repair Stations . | . . . Recycling Units 1 | . 1 . Scanalyzers . | . . . Garrison Access . | . . . Total Hacks 10 | . 7 3 Successful 3 | . 2 1 Failed 6 | . 4 2 Catastrophic . | . . . Database Lockouts 1 | . 1 . Manual 11 | . 9 2 Terminals 8 | . 6 2 Fabricators . | . . . Repair Stations . | . . . Recycling Units 1 | . 1 . Scanalyzers . | . . . Garrison Access . | . . . Terminal Hacks 2 | . 1 1 Robot Analysis 1 | . 1 . Open Door 1 | . . 1 Fabricator Hacks . | . . . Repair Station Hacks . | . . . Recycling Unit Hacks . | . . . Scanalyzer . | . . . Garrison Access Hacks . | . . . Unauthorized Hacks 1 | . 1 . Terminals . | . . . Fabricators . | . . . Repair Stations . | . . . Recycling Units 1 | . 1 . Tunnel 1 | . 1 . Scanalyzers . | . . . Garrison Access . | . . . Data Cores Recovered . | . . . Used . | . . . Hacking Detections 4 | . 3 1 Full Trace Events . | . . . Feedback Events . | . . . Feedback Blocked . | . . . Robot Schematics Acquired . | . . . Robots Built . | . . . Matter . | . . . Time . | . . . Total Robot Build Rating . | . . . Part Schematics Acquired . | . . . Parts Built . | . . . Matter . | . . . Time . | . . . Total Part Build Rating . | . . . Parts Repaired . | . . . Time . | . . . Parts Recycled . | . . . Recycled Matter . | . . . Retrieved Matter . | . . . Retrieved Components . | . . . Parts Scanalyzed . | . . . Part Schematics Acquired . | . . . Parts Damaged . | . . . Bothacking | -11 -10 -10 ------------ Run | Scr Mat Min Used RIF Installer . | . . . Robots Hacked . | . . . Non-combat . | . . . Combat . | . . . Robot Hacks Applied . | . . . Relay Couplers Released . | . . . Robots Rewired . | . . . Allies Hacked . | . . . Hacks Repelled . | . . . Allies | -11 -10 -10 -------- Run | Scr Mat Min Total Allies 1 | . . 1 Largest Group 1 | . . 1 Highest-Rated Group 31 | . . 31 Highest-Rated Ally 31 | . . 31 Total Orders . | . . . Ally Attacks . | . . . Total Damage . | . . . Kills . | . . . Allies Corrupted . | . . . Allies Melted . | . . . Intel | -11 -10 -10 ------- Run | Scr Mat Min Robot Analysis Total 1 | . 1 . Derelict Logs Recovered 1 | . . 1 Drone Launches . | . . . Drone Recoveries . | . . . Exploration | -11 -10 -10 ------------- Run | Scr Mat Min Turns Passed 3030 | . 1281 1749 Spaces Moved 1593 | 1 639 953 Core . | . . . Treads 1586 | . 633 953 Legs 7 | 1 6 . Wheels . | . . . Hover . | . . . Flight . | . . . Fastest Speed 120 | 120 120 165 Average Speed 168 | 120 169 168 Slowest Speed 200 | 120 200 200 Overloaded Moves . | . . . Propulsion Burnouts . | . . . Robots Hopped . | . . . Cave-ins Triggered 2 | . . 2 Exploration Rate (%) 62 | 2 87 98 Regions Visited 2 Branch Regions 1 Pre-discovered Areas 1 | . 1 . Known Exits Taken . | . . . Unknown Exits Taken 2 | 1 1 . Scrap Searched 1 | . . 1 Spaces Dug 47 | . . 47 Terrain Destroyed 158 | . 45 113 Melee . | . . . Projectile . | . . . AOE 158 | . 45 113 Terrain Rammed . | . . . Walls Destroyed . | . . . Machines Disabled . | . . . Actions | -11 -10 -10 --------- Run | Scr Mat Min Total 1771 | . 740 1031 Wait . | . . . Move 1589 | . 638 951 Hop . | . . . Pick Up 29 | . 19 10 Fast Attach 7 | . 4 3 Attach 7 | . 6 1 Detach . | . . . Swap 9 | . 4 5 Drop 23 | . 10 13 Fire 101 | . 59 42 Melee . | . . . Ram . | . . . Kick . | . . . Crush 5 | . . 5 Escape Stasis 1 | . . 1 Rewire . | . . . Trap . | . . . Miscellaneous . | . . . Route ------- -11/Scrapyard -10/Materials (discovered 5 exits: [*Mat x3] / *Min x2) -10/Mines (discovered 2 exits: [*Mat x2]) History --------- Turn | Location | Event 1 | -11/Scrapyard | Discovered new exit (range 0) 1 | -11/Scrapyard | Entered Materials 73 | -10/Materials | Central database locked down 198 | -10/Materials | Discovered new exit (range 16) 303 | -10/Materials | Build established: Mutant 662 | -10/Materials | Discovered new exit (range 16) 761 | -10/Materials | Discovered new exit (range 4) 931 | -10/Materials | Discovered new exit (range 16) 1084 | -10/Materials | Discovered new exit (range 12) 1282 | -10/Materials | Entered Mines 1351 | -10/Mines | Learned Materials emergency access door positions 1365 | -10/Mines | A weapon hastily lodged in a ceiling crevice suddenly fell to the ground 1378 | -10/Mines | Discovered new exit (range 15) 1487 | -10/Mines | YI-UF0 nonchalantly dropped a Grenade Launcher on the ground 1508 | -10/Mines | Destroyed YI-UF0 1518 | -10/Mines | Found Prototype Launcher 1557 | -10/Mines | Met a Derelict who couldn't figure out how to use a Trap Extractor 1566 | -10/Mines | Core integrity fell below 50% 1737 | -10/Mines | Discovered new exit (range 10) 2383 | -10/Mines | Received a Mining Laser from a helpful Derelict 2755 | -10/Mines | Identified YI-UF0's Doublenader 3023 | -10/Mines | Crushed by falling debris 3024 | -10/Mines | System corruption reached 10% 3031 | -10/Mines | Crushed by falling debris 3031 | -10/Mines | Smashed by cave-in Last Messages --------------- 02834_ U-05 Engineer lays Concrete. 02838_ K-01 Serf collects debris. 02856_ U-05 Engineer lays Concrete. 02867_ U-05 Engineer builds a Wall. 02870_ K-01 Serf collects debris. 02872_ U-05 Engineer lays Concrete. 02876_ U-05 Engineer builds a Wall. 02891_ Slammed into T-07 Excavator. 02898_ Acquired 8 matter. 03023_ The unstable cave ceiling collapses. 03023_ Crushed by falling debris. 03023_ Lgt. Assault Rifle destroyed. 03023_ System corrupted by crushing effect (+5). 03023_ Ion Engine destroyed. 03023_ System corrupted by crushing effect (+5). 03027_ System corrupted: Matter fused (-7). 03031_ The unstable cave ceiling collapses. 03031_ Crushed by falling debris. 03031_ Lgt. Treads destroyed. 03031_ System corrupted by crushing effect (+2). Map ----- +----------------------------------------------------+ | ?????????????????????????????????????????????????? | | ??????????####?###?###?#####???????######???????## | | ??????????# ? ? ? #??????## ####### | | ??????????# """ """ """ #??????# | | ??????????# """ """ """ #??????# | | ??????????# """ """ """ #??????## | | ??????????# #???????###### | | ??????????# """ """ """ #???????###??## | | ??????????# """ """ """ #??????######## | | ??????????# """ """ """ #??????## ## #### | | ??????????# #??????# # ##??# | | ??????????# """ """ """ #??????# ! = ##???# | | ?????###### """ """ """ #??????# [!=%| ##???# | | ?????# """ """ """ #??????#= #* #???# | | ?????# ### #??????## ## #???# | | ?????# #?############### ##???????#### ##??# | | ?????# #?????????????# ###?????#### ##?# | | ?????# #????????????## ##???????# ### | | ?????# #????????????# #??????## ## % | | ###### ############## ##??##### #### ## | | # #?## #??## ### | | # ############## #?# ##???##### | | # ######????????????## #?# #####???????#]= | | # #??????????????????## ###?# #???????????# | | # #???????????????????# # #??# #???????????## | | # #???????????????????# @ #??# #????????????## | | # #???????????????????#######??# #?????????????? | | # #????????????????????????????# #?????????????? | | # #?????????????????????????#### #?????????????? | | # #????????????????????###### #??????????#### | | # ##???????????????????# ####?????????## | | # ##??????????????????# #???????????## | | # ###????????????????# ######??????????## | | # #????????????????# #?????????????### | | # #????????????????# ###???????????# | | ##????????????????# ##??######### | | #???????????????## ##?# | | # #################### ### # ## | | #???# ## ########## #### | | ##??# ############## ## #????????# #??? | | #??# #????????????## ## #????????# #??? | | #### #?????????????### #??????### #??? | | #???????????????## ############ #??? | | ## #######?#######????????# ###???## ##?? | | ?#### ##?## ##???????# #?????# #?? | | ## ?## #???????# #?????# #?? | | # ### #### ####????# #?????## ########?? | | # # ?# #????# #??????## #????????# | | ### ## #????# #???????# #???###### | | # ## ### ###### #???????# #??## ## | +----------------------------------------------------+ Best States ------------- Heat Dissipation 35 Energy Generation 10 Energy Capacity 250 Matter Stores 300 Matter Capacity 300 Sight Range 16 Terrain Scan Density 10 Evasion (%) 40 Recoil Reduction 2 Salvage Targeting 1 Item Schematics ----------------- None Robot Schematics ------------------ None Fabricated ------------ Nothing Alien Tech Used ----------------- None Achievements -------------- None Challenges ------------ None Game ------ Seed StorageSpreadAxe Manual? 0 Play Time 00:13:46 Cumulative 271.0 hours Start 2021.01.26 @ 19:42:27 End 2021.01.26 @ 19:53:51 Sessions 1 Manual Loads 0 Difficulty Rogue Special Mode None Game No. 232 Rogue 225 Adventurer 0 Explorer 7 Win Type - Total 7 Types 2/0/5/0/0/0/0/0/0 Lore% 74 Gallery% 91 Achievement% 71 Wizard Run 0 Options --------- ASCII 0 Keyboard 0 Movement Mouse Keybinds 0 Fullscreen 1 Font 18/X11 Map View 76x50 Tactical HUD 1 Map Filters NONE Filters NONE Steam 1 RUN: 0323394a-ad6e-4cc1-add9-285a482bdc0a